fUSD/lending_fUSD_20250521
["ID","MTS","AMOUNT","RATE_DAILY","PERIOD"]
[361827374,1747823662222,-1449.1,0.00038082,5]
[361827375,1747823662232,-796.16,0.00038082,5]
[361827376,1747823662243,-829.47,0.00038082,5]
[361827377,1747823662254,-560.22,0.00038082,5]
[361827378,1747823662264,-2061.87,0.00038082,5]
[361827379,1747823662274,-1759.24,0.00038082,5]
[361827380,1747823662285,-677.92,0.00038082,5]
[361827381,1747823662296,-420.0,0.00038082,5]
[361827382,1747823662306,-2008.9,0.00038082,5]
[361827383,1747823662316,-420.0,0.00038082,5]
[361827384,1747823662326,-603.25,0.00038082,5]
[361827385,1747823662337,-3335.62,0.00038082,5]
[361827386,1747823662347,-794.93,0.00038082,5]
[361827387,1747823662357,-462.11,0.00038082,5]
[361827388,1747823662368,-1384.78,0.00038082,5]
[361827389,1747823662379,-3088.45,0.00038082,5]
[361827390,1747823662390,-3415.98,0.00038082,5]
[361827391,1747823662403,-475.97,0.00038082,5]
[361827392,1747823662414,-420.0,0.00038082,5]
[361827393,1747823662425,-1441.04,0.00038082,5]
[361827394,1747823662437,-1360.17,0.00038082,5]
[361827395,1747823662451,-799.95,0.00038082,5]
[361827396,1747823662462,-1022.16,0.00038082,5]
[361827397,1747823662475,-2905.57,0.00038082,5]
[361827398,1747823662486,-2154.53,0.00038082,5]
[361827399,1747823662498,-1412.77,0.00038082,5]
[361827400,1747823662508,-1804.92,0.00038082,5]
[361827401,1747823662520,-931.82,0.00038082,5]
[361827402,1747823662531,-3820.81,0.00038082,5]
[361827403,1747823662542,-446.52,0.00038082,5]
[361827404,1747823662554,-3379.22,0.00038082,5]
[361827405,1747823662566,-552.29,0.00038082,5]
[361827406,1747823662577,-2204.62,0.00038082,5]
[361827407,1747823662589,-739.98,0.00038082,5]
[361827408,1747823662600,-1686.16,0.00038082,5]
[361827409,1747823662611,-638.15,0.00038082,5]
[361827410,1747823662623,-2851.0,0.00038082,5]
[361827411,1747823662634,-1365.61,0.00038082,5]
[361827412,1747823662646,-669.03,0.00038082,5]
[361827413,1747823662657,-641.93,0.00038082,5]
[361827414,1747823662670,-1513.514558,0.00038082,5]
[361827415,1747823662681,-605.2,0.00038082,5]
[361827416,1747823662692,-1056.24,0.00038082,5]
[361827417,1747823662703,-3414.72,0.00038082,5]
[361827418,1747823662715,-456.44,0.00038082,5]
[361827419,1747823662727,-2738.58,0.00038082,5]
[361827420,1747823662739,-626.72,0.00038082,5]
[361827421,1747823662750,-1961.22,0.00038082,5]
[361827422,1747823662762,-4019.16,0.00038082,5]
[361827423,1747823662773,-501.19,0.00038082,5]
[361827424,1747823662784,-437.02,0.00038082,5]
[361827425,1747823662795,-3829.73,0.00038082,5]
[361827426,1747823662806,-1171.35,0.00038082,5]
[361827427,1747823662819,-1602.68,0.00038082,5]
[361827428,1747823662831,-1195.86,0.00038082,5]
[361827429,1747823662843,-1595.56,0.00038082,5]
[361827430,1747823662854,-2127.07,0.00038082,5]
[361827431,1747823662865,-1620.22,0.00038082,5]
[361827432,1747823662878,-975.42,0.00038082,5]
[361827433,1747823662890,-1403.63,0.00038082,5]
[361827434,1747823662902,-663.27,0.00038082,5]
[361827435,1747823662913,-1651.18,0.00038082,5]
[361827436,1747823662924,-4718.07,0.00038082,5]
[361827437,1747823662936,-560.95,0.00038082,5]
[361827438,1747823662948,-701.41,0.00038082,5]
[361827439,1747823662959,-708.42,0.00038082,5]
[361827440,1747823662970,-420.0,0.00038082,5]
[361827441,1747823662983,-1131.94,0.00038082,5]
[361827442,1747823662994,-3071.77,0.00038082,5]
[361827443,1747823663007,-1890.69,0.00038082,5]
[361827444,1747823663019,-420.0,0.00038082,5]
[361827445,1747823663031,-2588.8,0.00038082,5]
[361827446,1747823663043,-3358.3,0.00038082,5]
[361827447,1747823663055,-950.44,0.00038082,5]
[361827448,1747823663067,-1081.97,0.00038082,5]
[361827449,1747823663078,-447.09,0.00038082,5]
[361827450,1747823663089,-1061.79,0.00038082,5]
[361827451,1747823663101,-3165.26,0.00038082,5]
[361827452,1747823663113,-1578.73,0.00038082,5]
[361827453,1747823663125,-420.0,0.00038082,5]
[361827454,1747823663137,-437.54,0.00038082,5]
[361827455,1747823663149,-801.31,0.00038082,5]
[361827456,1747823663162,-1117.87,0.00038082,5]
[361827457,1747823663175,-590.41,0.00038082,5]
[361827458,1747823663188,-646.24,0.00038082,5]
[361827459,1747823663200,-469.33,0.00038082,5]
[361827460,1747823663212,-1582.05,0.00038082,5]
[361827461,1747823663224,-944.65,0.00038082,5]
[361827462,1747823663237,-1388.27,0.00038082,5]
[361827463,1747823663248,-817.62,0.00038082,5]
[361827464,1747823663261,-1313.42,0.00038082,5]
[361827465,1747823663272,-2499.18,0.00038082,5]
[361827466,1747823663284,-591.99,0.00038082,5]
[361827467,1747823663295,-2712.821305,0.00038082,5]
[361827468,1747823663307,-2676.06,0.00038082,5]
[361827469,1747823663319,-1630.17,0.00038082,5]
[361827470,1747823663331,-707.44,0.00038082,5]
[361827471,1747823663343,-2046.62,0.00038082,5]
[361827472,1747823663355,-184.48786849,0.00038082,5]
[361827473,1747823663367,-524.92,0.00038082,5]
[361827474,1747823663378,-844.05,0.00038082,5]
[361827475,1747823663394,-2122.24,0.00038082,5]
[361827476,1747823663406,-603.94,0.00038082,5]
[361827477,1747823663417,-5021.23,0.00038082,5]
[361827478,1747823663429,-1529.49,0.00038082,5]
[361827479,1747823663441,-1250.7,0.00038082,5]
[361827480,1747823663452,-199.15749675,0.00038082,5]
[361827481,1747823663465,-1682.48,0.00038082,5]
[361827482,1747823663476,-1386.81,0.00038082,5]
[361827483,1747823663488,-730.49,0.00038082,5]
[361827484,1747823663499,-447.9,0.00038082,5]
[361827485,1747823663511,-1324.88,0.00038082,5]
[361827486,1747823663522,-2229.66,0.00038082,5]
[361827487,1747823663534,-434.93,0.00038082,5]
[361827488,1747823663546,-472.1,0.00038082,5]
[361827489,1747823663560,-1282.33,0.00038082,5]
[361827490,1747823663572,-444.34,0.00038082,5]
[361827491,1747823663583,-2643.47,0.00038082,5]
[361827492,1747823663596,-1343.09,0.00038082,5]
[361827493,1747823663608,-600.65,0.00038082,5]
[361827494,1747823663620,-1076.93,0.00038082,5]
[361827495,1747823663631,-1416.84,0.00038082,5]
[361827496,1747823663644,-1332.5,0.00038082,5]
[361827497,1747823663656,-682.19,0.00038082,5]
[361827498,1747823663668,-438.34,0.00038082,5]
[361827499,1747823663680,-1392.97,0.00038082,5]
[361827500,1747823663692,-612.59717129,0.00038082,30]
[361827501,1747823663704,-632.83,0.00038082,5]
[361827502,1747823663716,-713.78,0.00038082,5]
[361827503,1747823663728,-2568.63,0.00038082,5]
[361827504,1747823663739,-791.4,0.00038082,5]
[361827505,1747823663751,-1222.57,0.00038082,5]
[361827506,1747823663763,-420.0,0.00038082,5]
[361827507,1747823663776,-1185.11,0.00038082,5]
[361827508,1747823663787,-3400.95,0.00038082,5]
[361827509,1747823663799,-618.99,0.00038082,5]
[361827510,1747823663811,-559.3,0.00038082,5]
[361827511,1747823663823,-2592.87,0.00038082,5]
[361827512,1747823663835,-729.48,0.00038082,5]
[361827513,1747823663847,-1036.77,0.00038082,5]
[361827514,1747823663858,-912.69,0.00038082,5]
[361827515,1747823663870,-2077.17,0.00038082,5]
[361827516,1747823663882,-474.23,0.00038082,5]
[361827517,1747823663894,-633.02,0.00038082,5]
[361827518,1747823663905,-2143.32,0.00038082,5]
[361827519,1747823663917,-2433.64,0.00038082,5]
[361827520,1747823664357,-2156.45,0.00038082,5]
[361827521,1747823664371,-680.33,0.00038082,5]
[361827522,1747823664381,-1587.63,0.00038082,5]
[361827523,1747823664392,-3338.68,0.00038082,5]
[361827524,1747823664405,-2132.67,0.00038082,5]
[361827525,1747823664416,-539.66,0.00038082,5]
[361827526,1747823664426,-1108.21,0.00038082,5]
[361827527,1747823664436,-1448.56,0.00038082,5]
[361827528,1747823664447,-1231.09,0.00038082,5]
[361827529,1747823664457,-1449.81,0.00038082,5]
[361827530,1747823664468,-420.0,0.00038082,5]
[361827531,1747823664480,-2507.82,0.00038082,5]
[361827532,1747823664491,-2269.59,0.00038082,5]
[361827533,1747823664502,-3289.43,0.00038082,5]
[361827534,1747823664512,-461.55,0.00038082,5]
[361827535,1747823664522,-1017.25,0.00038082,5]
[361827536,1747823664533,-1196.46,0.00038082,5]
[361827537,1747823664543,-1902.38,0.00038082,5]
[361827538,1747823664553,-4528.11,0.00038082,5]
[361827539,1747823664563,-2709.01,0.00038082,5]
[361827540,1747823664573,-437.58,0.00038082,5]
[361827541,1747823664584,-934.68,0.00038082,5]
[361827542,1747823664594,-644.31,0.00038082,5]
[361827543,1747823664604,-3000.52,0.00038082,5]
[361827544,1747823664615,-2558.61,0.00038082,5]
[361827545,1747823664625,-919.21,0.00038082,5]
[361827546,1747823664635,-1016.83,0.00038082,5]
[361827547,1747823664646,-3800.75,0.00038082,5]
[361827548,1747823664656,-1283.86,0.00038082,5]
[361827549,1747823664666,-5012.54,0.00038082,5]
[361827550,1747823664677,-4257.36,0.00038082,5]
[361827551,1747823664687,-420.0,0.00038082,5]
[361827552,1747823664697,-2661.46,0.00038082,5]
[361827553,1747823664708,-7175.57,0.00038082,5]
[361827554,1747823664718,-1626.84,0.00038082,5]
[361827555,1747823664729,-7478.95,0.00038082,5]
[361827556,1747823664738,-1297.42,0.00038082,5]
[361827557,1747823664748,-1050.66,0.00038082,5]
[361827558,1747823664758,-3186.22,0.00038082,5]
[361827559,1747823664769,-459.54,0.00038082,5]
[361827560,1747823664779,-1603.59,0.00038082,5]
[361827561,1747823664789,-1706.72,0.00038082,5]
[361827562,1747823664800,-1118.07,0.00038082,5]
[361827563,1747823664810,-1819.17,0.00038082,5]
[361827564,1747823664820,-477.62,0.00038082,5]
[361827565,1747823664830,-500.47,0.00038082,5]
[361827566,1747823664841,-3456.53,0.00038082,5]
[361827567,1747823664851,-1245.18,0.00038082,5]
[361827568,1747823664861,-864.67,0.00038082,5]
[361827569,1747823664871,-485.82,0.00038082,5]
[361827570,1747823664882,-1044.28,0.00038082,5]
[361827571,1747823664892,-483.53,0.00038082,5]
[361827572,1747823664903,-2279.99,0.00038082,5]
[361827573,1747823664913,-1093.42,0.00038082,5]
[361827574,1747823664928,-773.61,0.00038082,5]
[361827575,1747823664938,-1587.6,0.00038082,5]
[361827576,1747823664948,-3023.35,0.00038082,5]
[361827577,1747823664958,-2681.61,0.00038082,5]
[361827578,1747823664969,-3921.51,0.00038082,5]
[361827579,1747823664980,-774.74,0.00038082,5]
[361827580,1747823664990,-11832.32,0.00038082,5]
[361827581,1747823665000,-1140.49,0.00038082,5]
[361827582,1747823665010,-716.85,0.00038082,5]
[361827583,1747823665020,-1451.14,0.00038082,5]
[361827584,1747823665030,-1980.16,0.00038082,5]
[361827585,1747823665039,-4169.63,0.00038082,5]
[361827586,1747823665049,-614.3,0.00038082,5]
[361827587,1747823665059,-478.74,0.00038082,5]
[361827588,1747823665069,-1064.83,0.00038082,5]
[361827589,1747823665078,-1031.8,0.00038082,5]
[361827590,1747823665089,-2328.19,0.00038082,5]
[361827591,1747823665099,-2178.09,0.00038082,5]
[361827592,1747823665109,-595.22,0.00038082,5]
[361827593,1747823665118,-12779.36,0.00038082,5]
[361827594,1747823665128,-3199.69,0.00038082,5]
[361827595,1747823665137,-464.93,0.00038082,5]
[361827596,1747823665147,-3624.48,0.00038082,5]
[361827597,1747823665157,-1385.93,0.00038082,5]
[361827598,1747823665167,-1592.89,0.00038082,5]
[361827599,1747823665177,-3239.25,0.00038082,5]
[361827600,1747823665190,-4626.37,0.00038082,5]
[361827601,1747823665200,-1377.38,0.00038082,5]
[361827602,1747823665209,-2100.46,0.00038082,5]
[361827603,1747823665219,-232873.01,0.00038082,5]
[361827604,1747823665229,-2870.6,0.00038082,5]
[361827605,1747823665238,-544.44,0.00038082,5]
[361827606,1747823665248,-2582.79,0.00038082,5]
[361827607,1747823665258,-1455.85,0.00038082,5]
[361827608,1747823665267,-613.45,0.00038082,5]
[361827609,1747823665277,-3817.8,0.00038082,5]
[361827610,1747823665288,-814.19,0.00038082,5]
[361827611,1747823665298,-1001.8,0.00038082,5]
[361827612,1747823665308,-24741.12,0.00038082,5]
[361827613,1747823665319,-746.18,0.00038082,5]
[361827614,1747823665329,-1332.61,0.00038082,5]
[361827615,1747823665341,-1140.2,0.00038082,5]
[361827616,1747823665352,-847.4,0.00038082,5]
[361827617,1747823665362,-6653.58,0.00038082,5]
[361827618,1747823665371,-2208.36,0.00038082,5]
[361827619,1747823665381,-3466.92,0.00038082,5]
[361827620,1747823665395,-756.27,0.00038082,5]
[361827621,1747823665405,-2780.98,0.00038082,5]
[361827622,1747823665414,-3727.2,0.00038082,5]
[361827623,1747823665424,-43430.9,0.00038082,5]
[361827624,1747823665435,-4377.12,0.00038082,5]
[361827625,1747823665445,-662.42,0.00038082,5]
[361827626,1747823665455,-1355.36,0.00038082,5]
[361827627,1747823665466,-3823.68,0.00038082,5]
[361827628,1747823665476,-1646.2,0.00038082,5]
[361827629,1747823665486,-1929.18,0.00038082,5]
[361827630,1747823665496,-692.1,0.00038082,5]
[361827631,1747823665507,-27430.46,0.00038082,5]
[361827632,1747823665516,-694.13,0.00038082,5]
[361827633,1747823665529,-1375.19,0.00038082,5]
[361827634,1747823665538,-420.0,0.00038082,5]
[361827635,1747823665549,-1035.87,0.00038082,5]
[361827636,1747823665559,-8392.23,0.00038082,5]
[361827637,1747823665569,-3873.45,0.00038082,5]
[361827638,1747823665579,-2620.97,0.00038082,5]
[361827639,1747823665589,-831.34,0.00038082,5]
[361827640,1747823665598,-683.8,0.00038082,5]
[361827641,1747823665608,-2236.59,0.00038082,5]
[361827642,1747823665617,-862.9,0.00038082,5]
[361827643,1747823665627,-648.18,0.00038082,5]
[361827644,1747823665636,-333.94,0.00038082,5]
[361827645,1747823665646,-2431.99,0.00038082,5]
[361827646,1747823665655,-2055.72,0.00038082,5]
[361827647,1747823665665,-30819.65,0.00038082,5]
[361827648,1747823665675,-426.36,0.00038082,5]
[361827649,1747823665687,-3529.5,0.00038082,5]
[361827650,1747823665698,-420.0,0.00038082,5]
[361827651,1747823665707,-507.94,0.00038082,5]
[361827652,1747823665716,-7158.91,0.00038082,5]
[361827653,1747823665726,-1372.96,0.00038082,5]
[361827654,1747823665736,-1395.97,0.00038082,5]
[361827655,1747823665746,-11263.62,0.00038082,5]
[361827656,1747823665755,-11955.57,0.00038082,5]
[361827657,1747823665765,-10218.82,0.00038082,5]
[361827658,1747823665775,-903.34,0.00038082,5]
[361827659,1747823665785,-4237.43,0.00038082,5]
[361827660,1747823665794,-1156.02,0.00038082,5]
[361827661,1747823665804,-1250.1,0.00038082,5]
[361827662,1747823665813,-1940.56,0.00038082,5]
[361827663,1747823665823,-1535.0,0.00038082,5]
[361827664,1747823665832,-2611.65,0.00038082,5]
[361827665,1747823665842,-2088.87,0.00038082,5]
[361827666,1747823665852,-604.9,0.00038082,5]
[361827667,1747823665862,-436.47,0.00038082,5]
[361827668,1747823665872,-4967.59,0.00038082,5]
[361827669,1747823665883,-512.59,0.00038082,5]
[361827670,1747823665892,-3994.4,0.00038082,5]
[361827671,1747823665902,-997.3,0.00038082,5]
[361827672,1747823665911,-2461.55,0.00038082,5]
[361827673,1747823665920,-3960.15,0.00038082,5]
[361827674,1747823665929,-2650.09,0.00038082,5]
[361827675,1747823665943,-1029.17,0.00038082,5]
[361827676,1747823665953,-655.48,0.00038082,5]
[361827677,1747823665963,-2763.51,0.00038082,5]
[361827678,1747823665979,-6358.26,0.00038082,5]
[361827679,1747823665989,-3823.46,0.00038082,5]
[361827680,1747823665999,-420.0,0.00038082,5]
[361827681,1747823666009,-420.0,0.00038082,5]
[361827682,1747823666018,-2138.94,0.00038082,5]
[361827683,1747823666029,-3514.65,0.00038082,5]
[361827684,1747823666038,-578.47,0.00038082,5]
[361827685,1747823666048,-164.5344541,0.00038082,5]
[361827686,1747823666058,-1778.66,0.00038082,5]
[361827687,1747823666067,-7467.95,0.00038082,5]
[361827688,1747823666077,-4923.96,0.00038082,5]
[361827689,1747823666086,-420.87,0.00038082,5]
[361827690,1747823666096,-493.2,0.00038082,5]
[361827691,1747823666106,-1642.25,0.00038082,5]
[361827692,1747823666115,-1388.95,0.00038082,5]
[361827693,1747823666124,-15894.82,0.00038082,5]
[361827694,1747823666134,-7928.56,0.00038082,5]
[361827695,1747823666143,-535.54,0.00038082,5]
[361827696,1747823666153,-3648.84,0.00038082,5]
[361827697,1747823666163,-18415.06,0.00038082,5]
[361827698,1747823666172,-516.21959049,0.00038082,5]
[361827699,1747823666182,-584.64,0.00038082,5]
[361827700,1747823666198,-2534.37,0.00038082,5]
[361827701,1747823666208,-2111.71,0.00038082,5]
[361827702,1747823666219,-1096.3,0.00038082,5]
[361827703,1747823666229,-2727.38,0.00038082,5]
[361827704,1747823666239,-4064.18,0.00038082,5]
[361827705,1747823666249,-1605.11,0.00038082,5]
[361827706,1747823666259,-481.82,0.00038082,5]
[361827707,1747823666268,-583.63,0.00038082,5]
[361827708,1747823666278,-2791.01,0.00038082,5]
[361827709,1747823666287,-3277.38,0.00038082,5]
[361827710,1747823666298,-1946.19,0.00038082,5]
[361827711,1747823666307,-4162.95,0.00038082,5]
[361827712,1747823666318,-486.64,0.00038082,5]
[361827713,1747823666327,-1793.09,0.00038082,5]
[361827714,1747823666337,-2365.3,0.00038082,5]
[361827715,1747823666347,-5030.39,0.00038082,5]
[361827716,1747823666357,-1065.78,0.00038082,5]
[361827717,1747823666366,-5351.26,0.00038082,5]
[361827718,1747823666376,-8618.58,0.00038082,5]
[361827719,1747823666386,-420.0,0.00038082,5]
[361827720,1747823666397,-4366.01,0.00038082,5]
[361827721,1747823666408,-1488.03,0.00038082,5]
[361827722,1747823666418,-5387.66,0.00038082,5]
[361827723,1747823666428,-1284.33,0.00038082,5]
[361827724,1747823666441,-853.5,0.00038082,5]
[361827725,1747823666451,-3564.21,0.00038082,5]
[361827726,1747823666460,-643.95,0.00038082,5]
[361827727,1747823666470,-11304.41,0.00038082,5]
[361827728,1747823666480,-751.7,0.00038082,5]
[361827729,1747823666490,-873.4,0.00038082,5]
[361827730,1747823666500,-1096.95,0.00038082,5]
[361827731,1747823666510,-441.74,0.00038082,5]
[361827732,1747823666520,-781.82,0.00038082,5]
[361827733,1747823666529,-420.0,0.00038082,5]
[361827734,1747823666538,-871.43,0.00038082,5]
[361827735,1747823666548,-778.01,0.00038082,5]
[361827736,1747823666558,-3424.15,0.00038082,5]
[361827737,1747823666568,-6336.25,0.00038082,5]
[361827738,1747823666578,-420.0,0.00038082,5]
[361827739,1747823666587,-575.11,0.00038082,5]
[361827740,1747823666597,-469.12,0.00038082,5]
[361827741,1747823666607,-5264.38,0.00038082,5]
[361827742,1747823666618,-2778.38,0.00038082,5]
[361827743,1747823666628,-2282.35,0.00038082,5]
[361827744,1747823666638,-2508.06,0.00038082,5]
[361827745,1747823666647,-477.54,0.00038082,5]
[361827746,1747823666657,-420.0,0.00038082,5]
[361827747,1747823666667,-45711.39,0.00038082,5]
[361827748,1747823666677,-1438.01,0.00038082,5]
[361827749,1747823666691,-2227.33,0.00038082,5]
[361827750,1747823666702,-237.23216829,0.00038082,5]
[361827751,1747823666712,-2994.99,0.00038082,5]
[361827752,1747823666722,-492.73,0.00038082,5]
[361827753,1747823666732,-845.16,0.00038082,5]
[361827754,1747823666742,-2847.74,0.00038082,5]
[361827755,1747823666752,-7033.02,0.00038082,5]
[361827756,1747823666761,-20631.06,0.00038082,5]
[361827757,1747823666771,-1653.01,0.00038082,5]
[361827758,1747823666781,-480.69,0.00038082,5]
[361827759,1747823666988,-440.6,0.00038082,5]
[361827760,1747823667000,-908.75,0.00038082,5]
[361827761,1747823667010,-1811.64,0.00038082,5]
[361827762,1747823667021,-1675.59,0.00038082,5]
[361827763,1747823667030,-1341.01,0.00038082,5]
[361827764,1747823667040,-1620.28,0.00038082,5]
[361827765,1747823667050,-2039.96,0.00038082,5]
[361827766,1747823667060,-659.87,0.00038082,5]
[361827767,1747823667070,-1650.39,0.00038082,5]
[361827768,1747823667080,-2331.07,0.00038082,5]
[361827769,1747823667090,-1130.47,0.00038082,5]
[361827770,1747823667100,-8529.77,0.00038082,5]
[361827771,1747823667110,-1170.52,0.00038082,5]
[361827772,1747823667120,-1019.14,0.00038082,5]
[361827773,1747823667130,-594.46,0.00038082,5]
[361827774,1747823667140,-420.0,0.00038082,5]
[361827775,1747823667150,-528.88,0.00038082,5]
[361827776,1747823667159,-420.0,0.00038082,5]
[361827777,1747823667169,-729.81,0.00038082,5]
[361827778,1747823667179,-6448.31,0.00038082,5]
[361827779,1747823667192,-157.265004,0.00038082,5]
[361827780,1747823667203,-4031.81,0.00038082,5]
[361827781,1747823667212,-15980.3,0.00038082,2]
[361827782,1747823667222,-569.82,0.00038082,5]
[361827783,1747823667232,-13852.49,0.00038082,5]
[361827784,1747823667242,-1991.55,0.00038082,5]
[361827785,1747823667252,-1826.19,0.00038082,5]
[361827786,1747823667263,-1260.39,0.00038082,5]
[361827787,1747823667273,-711.84,0.00038082,5]
[361827788,1747823667283,-932.88,0.00038082,5]
[361827789,1747823667293,-1316.77,0.00038082,5]
[361827790,1747823667304,-1559.3,0.00038082,5]
[361827791,1747823667313,-1672.61,0.00038082,5]
[361827792,1747823667324,-1828.91,0.00038082,5]
[361827793,1747823667334,-6643.48,0.00038082,5]
[361827794,1747823667344,-5987.12,0.00038082,5]
[361827795,1747823667354,-4970.74,0.00038082,5]
[361827796,1747823667363,-908.99,0.00038082,5]
[361827797,1747823667373,-1754.62,0.00038082,5]
[361827798,1747823667384,-636.17,0.00038082,5]
[361827799,1747823667397,-907.69,0.00038082,5]
[361827800,1747823667407,-434.27,0.00038082,5]
[361827801,1747823667416,-420.0,0.00038082,5]
[361827802,1747823667427,-14282.24,0.00038082,5]
[361827803,1747823667440,-2354.7,0.00038082,5]
[361827804,1747823667450,-2934.17,0.00038082,5]
[361827805,1747823667461,-420.0,0.00038082,5]
[361827806,1747823667471,-2098.09,0.00038082,5]
[361827807,1747823667483,-2370.12,0.00038082,5]
[361827808,1747823667493,-635.77,0.00038082,5]
[361827809,1747823667503,-1608.41,0.00038082,5]
[361827810,1747823667513,-2448.57,0.00038082,5]
[361827811,1747823667523,-565.39,0.00038082,5]
[361827812,1747823667533,-832.67,0.00038082,5]
[361827813,1747823667543,-1727.02,0.00038082,5]
[361827814,1747823667552,-2132.27,0.00038082,5]
[361827815,1747823667562,-1444.81,0.00038082,5]
[361827816,1747823667572,-674.57,0.00038082,5]
[361827817,1747823667582,-1244.04,0.00038082,5]
[361827818,1747823667591,-14461.5,0.00038082,5]
[361827819,1747823667602,-5215.67,0.00038082,5]
[361827820,1747823667613,-4167.33,0.00038082,5]
[361827821,1747823667623,-888.13,0.00038082,5]
[361827822,1747823667634,-207938.64,0.00038082,5]
[361827823,1747823667644,-548.09,0.00038082,5]
[361827824,1747823667653,-2319.06,0.00038082,5]
[361827825,1747823667664,-3257.11,0.00038082,5]
[361827826,1747823667673,-1507.21,0.00038082,5]
[361827827,1747823667683,-1493.55,0.00038082,5]
[361827828,1747823667698,-2557.88,0.00038082,5]
[361827829,1747823667708,-1088.44,0.00038082,5]
[361827830,1747823667718,-2873.2,0.00038082,5]
[361827831,1747823667728,-697.67,0.00038082,5]
[361827832,1747823667738,-5582.21,0.00038082,5]
[361827833,1747823667748,-480.01,0.00038082,5]
[361827834,1747823667758,-2282.96,0.00038082,5]
[361827835,1747823667768,-1657.0,0.00038082,5]
[361827836,1747823667778,-420.0,0.00038082,5]
[361827837,1747823667787,-799.92,0.00038082,5]
[361827838,1747823667798,-1063.9,0.00038082,5]
[361827839,1747823667808,-18765.11,0.00038082,5]
[361827840,1747823667822,-420.0,0.00038082,5]
[361827841,1747823667832,-673.17,0.00038082,5]
[361827842,1747823667842,-3847.23,0.00038082,5]
[361827843,1747823667851,-549.05,0.00038082,5]
[361827844,1747823667861,-2564.95,0.00038082,5]
[361827845,1747823667871,-474.32,0.00038082,5]
[361827846,1747823667880,-1818.07,0.00038082,5]
[361827847,1747823667890,-42262.48,0.00038082,5]
[361827848,1747823667900,-1719.68,0.00038082,5]
[361827849,1747823667910,-4510.74,0.00038082,5]
[361827850,1747823667919,-516.93,0.00038082,5]
[361827851,1747823667929,-3137.08,0.00038082,5]
[361827852,1747823667942,-506.82,0.00038082,5]
[361827853,1747823667952,-9532.22,0.00038082,5]
[361827854,1747823667962,-1001.23,0.00038082,5]
[361827855,1747823667972,-1349.86,0.00038082,5]
[361827856,1747823667982,-1554.78,0.00038082,5]
[361827857,1747823667991,-874.84,0.00038082,5]
[361827858,1747823668001,-627.61,0.00038082,5]
[361827859,1747823668012,-670.93,0.00038082,5]
[361827860,1747823668021,-420.0,0.00038082,5]
[361827861,1747823668031,-1909.1,0.00038082,5]
[361827862,1747823668040,-3667.82,0.00038082,5]
[361827863,1747823668049,-713.73,0.00038082,5]
[361827864,1747823668060,-756.58,0.000381,14]
[361827865,1747823668070,-150.0,0.00038304,120]
[361827866,1747823668080,-150.0,0.00038318,120]
[361827867,1747823668089,-1556.0,0.00038318,20]
[361827868,1747823668098,-163.73047666,0.00038355,2]
[361827869,1747823668107,-868.63,0.00038356,5]
[361827870,1747823668116,-771.73,0.00038356,5]
[361827871,1747823668125,-1206.97,0.00038356,5]
[361827872,1747823668134,-1764.15,0.00038356,5]
[361827873,1747823668144,-550.16,0.00038356,5]